fUSD/lending_fUSD_20260213
["ID","MTS","AMOUNT","RATE_DAILY","PERIOD"]
[405311619,1770975038167,-274.66756296,9.053e-05,2]
[405311620,1770975038211,-314.5778128,9.053e-05,2]
[405311621,1770975038222,-8395.07454884,9.053e-05,2]
[405311622,1770975038267,-3367321.48717344,9.053e-05,2]
[405311623,1770975038276,-46740.5366,9.053e-05,2]
[405311624,1770975038286,-281.47,9.1e-05,2]
[405311625,1770975038295,-250.0,9.126e-05,2]
[405311626,1770975038304,-360.06475,9.143e-05,2]
[405311627,1770975038314,-337.57,9.152e-05,2]
[405311628,1770975038323,-1050.915,9.166e-05,2]
[405311629,1770975038333,-162.301,9.166e-05,2]
[405311630,1770975038342,-6734.8376,9.253e-05,2]
[405311631,1770975038351,-150.99,9.392e-05,2]
[405311632,1770975038360,-9999.99,9.392e-05,2]
[405311633,1770975038370,-337.57,9.426e-05,2]
[405311634,1770975038379,-32832.125,9.453e-05,2]
[405311636,1770975038389,-9999.99,9.453e-05,2]
[405311638,1770975038398,-999.99,9.453e-05,2]
[405311640,1770975038407,-5731.75,9.453e-05,2]
[405311642,1770975038416,-9999.99,9.453e-05,2]
[405311644,1770975038425,-1000.0,9.541e-05,2]
[405311646,1770975038434,-10046.98,9.655e-05,2]
[405311648,1770975038443,-337.57,9.7e-05,2]
[405311650,1770975038453,-657.77,9.725e-05,2]
[405311652,1770975038462,-6899.81,9.892e-05,2]
[405311654,1770975038473,-500.0,9.918e-05,2]
[405311656,1770975038484,-337.57,9.974e-05,2]
[405311658,1770975038497,-326.37251831,0.0001,2]
[405311660,1770975038507,-1966.0489619,0.0001,2]
[405311662,1770975038517,-14989.60970083,0.0001,2]
[405311664,1770975038527,-619.21864907,0.0001,2]
[405311666,1770975038539,-619.21864907,0.0001,2]
[405311668,1770975038549,-250.0,0.0001001,2]
[405311670,1770975038558,-260.47970355,0.000101,2]
[405311672,1770975038570,-322.46,0.00010166,2]
[405311674,1770975038581,-337.58344325,0.00010248,2]
[405311676,1770975038591,-268.96643021,0.000107,2]
[405311678,1770975038601,-632.2594873,0.000108,2]
[405311680,1770975038611,-1500000.0,0.00010893,2]
[405311683,1770975038621,-4641.19638587,0.000109,2]
[405311685,1770975038632,-4641.19638585,0.000109,2]
[405311687,1770975038642,-657.77,0.0001094,2]
[405311688,1770975038651,-9448.28379857,0.00011,2]
[405311690,1770975038661,-9157.10317625,0.00011099,2]
[405311692,1770975038671,-9157.10317625,0.00011099,2]
[405311694,1770975038681,-9157.10317625,0.00011099,2]
[405311696,1770975038691,-9157.10317625,0.00011099,2]
[405311698,1770975038701,-9157.10317625,0.00011099,2]
[405311701,1770975038710,-9157.10317625,0.00011099,2]
[405311703,1770975038720,-9157.10317625,0.00011099,2]
[405311705,1770975038729,-9157.10317625,0.00011099,2]
[405311707,1770975038739,-9157.10317625,0.00011099,2]
[405311708,1770975038749,-9157.10317625,0.00011099,2]
[405311710,1770975038759,-500.0,0.00011099,2]
[405311712,1770975038768,-14751.14560003,0.00011099,2]
[405311714,1770975038778,-14751.14559998,0.00011099,2]
[405311716,1770975038788,-14751.14559998,0.00011099,2]
[405311718,1770975038798,-14751.14559998,0.00011099,2]
[405311720,1770975038808,-14751.14559998,0.00011099,2]
[405311722,1770975038818,-14751.14559998,0.00011099,2]
[405311724,1770975038827,-14751.14559998,0.00011099,2]
[405311726,1770975038837,-14751.14559998,0.00011099,2]
[405311728,1770975038847,-14751.14559998,0.00011099,2]
[405311730,1770975038857,-14751.14559998,0.00011099,2]
[405311732,1770975038867,-139307.09523188,0.00011232,2]
[405311734,1770975038877,-450.0,0.00011351,7]
[405311736,1770975038887,-150.0,0.00011374,2]
[405311738,1770975038897,-4641.19638585,0.00011509,2]
[405311741,1770975038913,-150.0,0.00011691,2]
[405311743,1770975038922,-250.0,0.00011962,2]
[405311745,1770975038932,-500.0,0.00012031,2]
[405311747,1770975038941,-8586.7,0.0001214,2]
[405311749,1770975038951,-657.77,0.00012156,2]
[405311750,1770975038961,-308.27277135,0.000125,2]
[405311752,1770975038970,-246.0,0.00012708,2]
[405311754,1770975038980,-4641.19638585,0.00012787,2]
[405311756,1770975038990,-49040.33555894,0.000129,2]
[405311759,1770975039000,-5620.89289465,0.00013,2]
[405311760,1770975039010,-958.1361216,0.00013,2]
[405311763,1770975039020,-12563.76949661,0.00013,15]
[405311765,1770975039029,-5360.46702265,0.0001305,2]
[405311767,1770975039038,-657.77,0.00013372,2]
[405311769,1770975039048,-11635.47887525,0.00013427,2]
[405311771,1770975039057,-2370.25231948,0.00013427,2]
[405311773,1770975039066,-1000.0,0.000135,2]
[405311775,1770975039076,-2366.7221574,0.00013519,2]
[405311777,1770975039085,-326.37251829,0.0001352,2]
[405311779,1770975039095,-166.66792853,0.00013673,2]
[405311781,1770975039104,-500.0,0.00013673,2]
[405311783,1770975039114,-500.0,0.00013698,2]
[405311785,1770975039123,-500.0,0.00013698,2]
[405311786,1770975039132,-500.0,0.00013698,2]
[405311789,1770975039141,-500.0,0.00013698,2]
[405311791,1770975039151,-500.0,0.00013698,2]
[405311793,1770975039160,-712.65,0.00013699,2]
[405311795,1770975039169,-1500.0,0.00014,2]
[405311797,1770975039179,-151.72862617,0.00014,2]
[405311799,1770975039189,-160.0,0.00014013,2]
[405311801,1770975039198,-4641.19638585,0.00014066,2]
[405311803,1770975039207,-1000.0,0.00014221,2]
[405311805,1770975039216,-10344.72501178,0.0001439,2]
[405311807,1770975039226,-657.77,0.00014587,2]
[405311809,1770975039235,-884.25817303,0.00014768,2]
[405311811,1770975039245,-2054.57446277,0.00015,2]
[405311813,1770975039255,-7998.56048941,0.00015,2]
[405311815,1770975039265,-418.64808275,0.00015,2]
[405311817,1770975039274,-900.0,0.00015068,2]
[405311819,1770975039284,-1517.64,0.000153,2]
[405311821,1770975039293,-4641.19638585,0.00015344,2]
[405311823,1770975039302,-184.33,0.00015399,2]
[405311825,1770975039312,-509.37205918,0.000154,2]
[405311827,1770975039322,-45688.9750155,0.0001561,2]
[405311846,1770975039501,-2244.65684869,0.00015807,2]
[405311848,1770975039511,-1000.0,0.00016067,7]
[405311850,1770975039521,-9999.99,0.00016116,2]
[405311852,1770975039531,-502.22718587,0.00016173,2]
[405311854,1770975039540,-500.0,0.00016173,2]
[405311856,1770975039550,-500.0,0.00016173,2]
[405311858,1770975039560,-277.78495624,0.00016173,2]
[405311860,1770975039571,-500.0,0.00016173,2]
[405311862,1770975039580,-500.0,0.00016173,2]
[405311864,1770975039589,-500.0,0.00016173,2]
[405311866,1770975039599,-500.0,0.00016173,2]
[405311868,1770975039609,-500.0,0.00016173,2]
[405311870,1770975039618,-500.0,0.00016173,2]
[405311872,1770975039627,-161.5226786,0.00016173,2]
[405311874,1770975039636,-377.55295707,0.00016173,2]
[405311876,1770975039646,-500.0,0.00016173,2]
[405311878,1770975039656,-500.0,0.00016173,2]
[405311880,1770975039665,-5000.00269632,0.000162,5]
[405311882,1770975039675,-253.087525,0.00016207,7]
[405311884,1770975039684,-200.0,0.0001634,2]
[405311886,1770975039692,-900.0,0.00016438,2]
[405311888,1770975039701,-306.3167255,0.0001649,2]
[405311890,1770975039711,-361.33092873,0.000166,2]
[405311892,1770975039720,-4641.19638585,0.00016622,2]
[405311893,1770975039729,-1000.0,0.00016721,2]
[405311894,1770975039738,-460.18108091,0.00016721,2]
[405311895,1770975039747,-895.51801597,0.00016721,2]
[405311896,1770975039755,-1000.0,0.00016721,2]
[405311897,1770975039764,-1000.0,0.00016721,2]
[405311898,1770975039773,-619.21864907,0.0001699,2]
[405311899,1770975039783,-990345.30744029,0.00017,2]
[405311900,1770975039791,-1516.46648451,0.00017268,2]
[405311901,1770975039800,-514.41300795,0.00017268,2]
[405311902,1770975039810,-1001.25973348,0.00017268,2]
[405311903,1770975039819,-783.90308371,0.000177,2]
[405311904,1770975039828,-481.89542729,0.00017743,2]
[405311905,1770975039837,-481.89542728,0.00017743,2]
[405311907,1770975039847,-1003.56652033,0.0001786,2]
[405311908,1770975039856,-11635.47887525,0.000179,2]
[405311910,1770975039865,-160.81615983,0.000179,2]
[405311912,1770975039876,-2370.25231948,0.000179,2]
[405311914,1770975039885,-300.0,0.00017999,2]
[405311916,1770975039894,-2429.84724611,0.00018,2]
[405311920,1770975039904,-2842308.39747886,0.00018,2]
[405311922,1770975039917,-4617.51286413,0.00018,2]
[405311925,1770975039932,-11700.40405899,0.00018,2]
[405311956,1770975040215,-475.80353924,0.00018,2]
[405311958,1770975040227,-737.14260421,0.00018,2]
[405311963,1770975040269,-500.0,0.00018,2]
[405311992,1770975040535,-342.26322073,0.00018,2]
[405311998,1770975040589,-3229837.74998862,0.00018,2]
[405311999,1770975040599,-34777.23406205,0.00018,2]
[405312000,1770975040608,-5004841.61501003,0.00018,2]
[405312001,1770975040620,-590.0917593,0.00018,2]
[405312002,1770975040631,-3870.83237973,0.00018,2]
[405312003,1770975040643,-523.34287504,0.00018,2]
[405312007,1770975043986,-500.0,8.953e-05,2]
[405312008,1770975044880,-974.74442038,8.953e-05,2]
[405312009,1770975044893,-861.43840673,8.953e-05,2]
[405312010,1770975044937,-6485.0461379,8.953e-05,2]
[405312021,1770975046304,-12083.7123,8.953e-05,2]
[405312114,1770976232290,-304.32,7.669e-05,2]
[405312115,1770976232300,-215.0,7.669e-05,2]
[405312116,1770976232310,-157.60004919,7.842e-05,2]
[405312117,1770976232344,-146.71995081,7.842e-05,2]
[405312118,1770976232354,-188.00754919,8.015e-05,2]
[405312119,1770976232366,-116.31245081,8.015e-05,2]
[405312120,1770976232375,-166.66,8.117e-05,2]
[405312121,1770976232385,-304.32,8.188e-05,2]
[405312122,1770976232395,-304.32,8.361e-05,2]
[405312123,1770976232405,-166.66,8.385e-05,2]
[405312124,1770976232414,-170.43722964,8.534e-05,2]
[405312125,1770976232434,-133.88277036,8.534e-05,2]
[405312126,1770976232443,-682.44998,8.643e-05,2]
[405312127,1770976232453,-300.0,8.652e-05,2]
[405312128,1770976232462,-573.65909043,8.652e-05,2]
[405312163,1770976240679,-626.34090957,8.652e-05,2]
[405312164,1770976240688,-300.0,8.652e-05,2]
[405312165,1770976240698,-166.66,8.653e-05,2]
[405312166,1770976240707,-581240.2872,8.653e-05,2]
[405312167,1770976240716,-10000.0,8.653e-05,2]
[405312168,1770976240726,-840.732,8.676e-05,2]
[405312169,1770976240736,-162.301,8.676e-05,2]
[405312170,1770976240745,-250.0,8.682e-05,2]
[405312171,1770976240755,-168.76,8.7e-05,2]
[405312172,1770976240764,-304.32,8.707e-05,2]
[405312173,1770976240774,-250.0,8.713e-05,2]
[405312174,1770976240783,-984.0,8.75e-05,2]
[405312176,1770976240793,-903.78335645,8.751e-05,2]
[405312178,1770976240802,-300.0,8.751e-05,2]
[405312180,1770976240812,-150.0,8.751e-05,2]
[405312182,1770976240821,-903.78335644,8.752e-05,2]
[405312183,1770976240830,-206.49089282,8.752e-05,2]
[405312184,1770976240839,-500.0,8.752e-05,2]
[405312185,1770976240849,-500.0,8.752e-05,2]
[405312186,1770976240859,-468.00641881,8.752e-05,2]
[405312187,1770976240871,-500.0,8.752e-05,2]
[405312188,1770976240881,-500.0,8.752e-05,2]
[405312189,1770976240890,-500.0,8.752e-05,2]
[405312190,1770976240900,-500.0,8.752e-05,2]
[405312191,1770976240911,-555.25667819,8.752e-05,2]
[405312192,1770976240920,-175.58289005,8.752e-05,2]
[405312193,1770976240929,-362.67037543,8.752e-05,2]
[405312194,1770976240939,-903.78335644,8.753e-05,2]
[405312195,1770976240948,-259.7041,8.753e-05,2]
[405312196,1770976240958,-6734.8376,8.753e-05,2]
[405312197,1770976240967,-3500000.0,8.753e-05,2]
[405312198,1770976240977,-1143.74339729,8.793e-05,2]
[405312199,1770976240986,-9999.99,8.851e-05,2]
[405312200,1770976240996,-999.99,8.851e-05,2]
[405312201,1770976241006,-150.99,8.851e-05,2]
[405312202,1770976241015,-9999.99,8.852e-05,2]
[405312203,1770976241024,-304.32,8.88e-05,2]
[405312204,1770976241033,-166.66,8.921e-05,2]
[405312205,1770976241043,-164.6924,8.953e-05,2]
[405312206,1770976241051,-32832.125,8.953e-05,2]
[405312207,1770976241061,-160.0,9e-05,2]
[405312208,1770976241070,-304.32,9.053e-05,2]
[405312209,1770976241080,-166.66,9.189e-05,2]
[405312210,1770976241089,-304.32,9.226e-05,2]
[405312211,1770976241098,-304.32,9.399e-05,2]
[405312212,1770976241108,-175.91,9.42e-05,2]
[405312213,1770976241117,-166.66,9.457e-05,2]
[405312214,1770976241126,-420.0,9.517e-05,2]
[405312215,1770976241135,-1680.0,9.517e-05,2]
[405312216,1770976241144,-250.0,9.544e-05,2]
[405312217,1770976241153,-304.32,9.572e-05,2]
[405312218,1770976241163,-304.32,9.745e-05,2]
[405312219,1770976241172,-304.32,9.918e-05,2]
[405312220,1770976241181,-304.32,0.00010091,2]
[405312221,1770976241191,-250.0,0.00010133,2]
[405312222,1770976241200,-304.32,0.00010264,2]
[405312223,1770976241209,-15828.57,0.00010386,2]
[405312224,1770976241219,-304.32,0.00010437,2]
[405312225,1770976241228,-587.0,0.00010469,2]
[405312226,1770976241237,-304.32,0.0001061,2]
[405312227,1770976241247,-304.32,0.00010783,2]
[405312228,1770976241256,-580.14954824,0.000109,2]
[405312229,1770976241265,-304.32,0.00010955,2]
[405312230,1770976241275,-823.0,0.00011516,2]
[405312231,1770976241284,-175.91,0.00011775,2]
[405312232,1770976241293,-13452.83,0.00012131,2]
[405312233,1770976241302,-177.161267,0.00012331,2]
[405312234,1770976241312,-1152.0,0.00012668,2]
[405312235,1770976241321,-730.79,0.00012687,2]
[405312236,1770976241330,-580.14954823,0.00013108,2]
[405312237,1770976241339,-1000.0,0.00013503,2]
[405312238,1770976241349,-500.0,0.00013673,2]
[405312239,1770976241358,-500.0,0.00013698,2]
[405312240,1770976241367,-505.53791634,0.00013698,2]
[405312241,1770976241376,-500.0,0.00013698,2]
[405312242,1770976241386,-500.0,0.00013698,2]
[405312243,1770976241395,-500.0,0.00013698,2]
[405312244,1770976241405,-500.0,0.00013698,2]
[405312245,1770976241415,-500.0,0.00013698,2]
[405312246,1770976241424,-500.0,0.00013698,2]
[405312247,1770976241433,-500.0,0.00013698,2]
[405312248,1770976241443,-430.95470034,0.00013698,2]
[405312249,1770976241451,-526.46476323,0.00013698,2]
[405312250,1770976241460,-500.0,0.00013698,2]
[405312251,1770976241470,-500.0,0.00013698,2]
[405312252,1770976241479,-500.0,0.00013698,2]
[405312253,1770976241488,-500.0,0.00013698,2]
[405312254,1770976241498,-500.0,0.00013698,2]
[405312255,1770976241507,-500.0,0.00013698,2]
[405312256,1770976241516,-500.0,0.00013698,2]
[405312257,1770976241527,-500.0,0.00013698,2]
[405312258,1770976241545,-500.0,0.00013698,2]
[405312259,1770976241567,-500.0,0.00013698,2]
[405312260,1770976241578,-500.0,0.00013698,2]
[405312261,1770976241587,-500.0,0.00013698,2]
[405312262,1770976241597,-500.0,0.00013698,2]
[405312263,1770976241606,-500.0,0.00013698,2]
[405312264,1770976241615,-500.0,0.00013698,2]
[405312265,1770976241624,-500.0,0.00013698,2]
[405312266,1770976241633,-500.0,0.00013698,2]
[405312267,1770976241643,-500.0,0.00013698,2]
[405312268,1770976241652,-500.0,0.00013698,2]
[405312269,1770976241661,-500.0,0.00013698,2]
[405312270,1770976241671,-500.0,0.00013698,2]
[405312271,1770976241680,-500.0,0.00013698,2]
[405312272,1770976241689,-559.38615752,0.00013698,2]
[405312273,1770976241699,-1613.0,0.00013934,2]
[405312274,1770976241708,-160.0,0.00014076,2]
[405312275,1770976241717,-150.0,0.00014118,2]
[405312276,1770976241727,-175.91,0.0001413,2]
[405312277,1770976241737,-876.63664137,0.00014221,2]
[405312278,1770976241746,-500.0,0.00014795,2]
[405312279,1770976241756,-250.0,0.00015,2]
[405312280,1770976241765,-1000.0,0.00015191,2]
[405312281,1770976241775,-2258.0,0.00015328,2]
[405312282,1770976241784,-453.94,0.00016116,2]
[405312283,1770976241794,-282.63121113,0.00016173,2]
[405312284,1770976241803,-160.37994263,0.00016173,2]
[405312285,1770976241812,-500.2976467,0.00016173,2]
[405312286,1770976241822,-500.0,0.00016173,2]
[405312287,1770976241831,-596.02960806,0.00016173,2]
[405312288,1770976241840,-166.66,0.00016337,2]
[405312289,1770976241850,-166.66,0.00016681,2]
[405312290,1770976241861,-199.17,0.00016712,2]
[405312291,1770976241874,-1000.0,0.00016721,2]
[405312292,1770976241883,-213.4265565,0.00016721,2]
[405312293,1770976241892,-3162.0,0.00016861,2]
[405312294,1770976241903,-1000.0,0.00016879,2]
[405312295,1770976241913,-300.0,0.00017,2]
[405312296,1770976241922,-166.66,0.00017025,2]
[405312297,1770976241932,-1500.0,0.00017268,2]
[405312298,1770976241941,-166.66,0.00017369,2]
[405312299,1770976241952,-580.14954823,0.00017474,2]
[405312300,1770976241962,-166.66,0.00017713,2]
[405312301,1770976241971,-607.89395114,0.00017808,2]
[405312302,1770976241980,-607.89395114,0.00017808,2]
[405312303,1770976241990,-607.89395114,0.00017808,2]
[405312304,1770976242000,-607.89395114,0.00017808,2]
[405312305,1770976242009,-607.89395114,0.00017808,2]
[405312306,1770976242018,-607.89395114,0.00017808,2]
[405312307,1770976242028,-607.89395114,0.00017808,2]
[405312308,1770976242037,-607.89395114,0.00017808,2]
[405312309,1770976242046,-607.89395114,0.00017808,2]
[405312310,1770976242056,-607.89395114,0.00017808,2]
[405312311,1770976242065,-607.89395114,0.00017808,2]
[405312312,1770976242075,-607.89395114,0.00017808,2]
[405312313,1770976242084,-607.89395114,0.00017808,2]
[405312314,1770976242094,-607.89395114,0.00017808,2]
[405312315,1770976242103,-607.89395114,0.00017808,2]
[405312316,1770976242113,-607.89395114,0.00017808,2]
[405312317,1770976242122,-607.89395114,0.00017808,2]
[405312318,1770976242132,-607.89395114,0.00017808,2]
[405312319,1770976242141,-607.89395114,0.00017808,2]
[405312320,1770976242151,-613.42025978,0.00017808,2]
[405312321,1770976242161,-613.42025978,0.00017808,2]
[405312322,1770976242170,-613.42025978,0.00017808,2]
[405312323,1770976242180,-613.42025978,0.00017808,2]
[405312324,1770976242190,-613.42025978,0.00017808,2]
[405312325,1770976242200,-613.42025978,0.00017808,2]
[405312326,1770976242209,-613.42025978,0.00017808,2]
[405312327,1770976242218,-613.42025978,0.00017808,2]
[405312328,1770976242228,-613.42025978,0.00017808,2]
[405312329,1770976242237,-613.42025978,0.00017808,2]
[405312330,1770976242247,-2008.47777759,0.00017816,2]
[405312331,1770976242257,-504491.1098,0.000179,2]
[405312332,1770976242266,-14418.6243627,0.000179,2]
[405312333,1770976242275,-4806.208121,0.000179,2]
[405312334,1770976242285,-500.0,0.00017945,2]
[405312335,1770976242294,-251934.59535432,0.00018,2]
[405312358,1770976396093,-300.0,8.552e-05,2]
[405312359,1770976396126,-163.11182431,8.552e-05,2]
[405312360,1770976396153,-155.44038952,8.553e-05,2]
[405312361,1770976408408,984.0,8.552e-05,2]
[405312362,1770976415206,-48397.44778617,8.553e-05,2]
[405312363,1770976479161,-300.0,8.552e-05,2]
[405312364,1770976479189,-150.0,8.552e-05,2]
[405312365,1770976479218,-300.0,8.552e-05,2]
[405312366,1770976479247,-175.58289005,8.552e-05,2]
[405312367,1770976479278,-500.0,8.552e-05,2]
[405312368,1770976479309,-500.0,8.552e-05,2]
[405312369,1770976479339,-468.00641881,8.552e-05,2]
[405312370,1770976479367,-250.0,8.553e-05,2]
[405312371,1770976479395,-47356.41069114,8.553e-05,2]
[405312372,1770976502398,-164.6924,8.452e-05,2]
[405312373,1770976502421,-1200.0,8.552e-05,2]
[405312374,1770976502442,-300.0,8.552e-05,2]
[405312375,1770976502463,-300.0,8.552e-05,2]
[405312378,1770976515306,-50000.0,8.553e-05,2]
[405312379,1770976515928,-2535.3076,8.553e-05,2]
[405312380,1770976525525,-40000.0,8.553e-05,2]
[405312381,1770976542677,-10000.0,8.553e-05,2]
[405312405,1770977431582,-1233.358,8.284e-05,2]
[405312406,1770977431592,-169.169,8.284e-05,2]
[405312407,1770977431602,-300.0,8.351e-05,2]
[405312408,1770977431613,-633.0,8.351e-05,2]
[405312409,1770977431624,-40.69422188,8.352e-05,2]
[405312410,1770977431636,-109.30577812,8.352e-05,2]
[405312411,1770977431647,-903.78335645,8.352e-05,2]
[405312412,1770977431658,-362.67037543,8.352e-05,2]
[405312413,1770977431669,-500.0,8.352e-05,2]
[405312414,1770977431679,-326.75101876,8.352e-05,2]
[405312415,1770977431689,-176.95384847,8.352e-05,2]
[405312416,1770977431703,-323.04615153,8.352e-05,2]
[405312417,1770977431715,-184.95384847,8.352e-05,2]
[405312418,1770977431727,-315.04615153,8.352e-05,2]
[405312419,1770977431738,-355.46192749,8.352e-05,2]
[405312421,1770977437473,-144.53807251,8.352e-05,2]
[405312422,1770977437483,-329.49441307,8.352e-05,2]
[405312423,1770977437579,-225.76226512,8.352e-05,2]
[405312424,1770977437590,-4252.82501521,8.353e-05,2]
[405312430,1770977439461,-616.96708447,8.353e-05,2]
[405312432,1770977439567,-332.967,8.353e-05,2]
[405312433,1770977439581,-701.73035516,8.353e-05,2]
[405312434,1770977439832,-828.93494516,8.353e-05,2]
[405312435,1770977439842,-3500000.0,8.353e-05,2]
[405312436,1770977439852,-903.78335644,8.402e-05,2]
[405312437,1770977439862,-547.02578597,8.451e-05,2]
[405312438,1770977439871,-212.05272325,8.451e-05,2]
[405312439,1770977439881,-903.78335644,8.451e-05,2]
[405312440,1770977439891,-500.0,8.453e-05,2]
[405312441,1770977439900,-500.0,8.453e-05,2]
[405312442,1770977439910,-500.0,8.453e-05,2]
[405312443,1770977439922,-14688.2864,8.553e-05,2]
[405312444,1770977439932,-250.0,9.112e-05,2]
[405312445,1770977439942,-250.0,9.112e-05,2]
[405312446,1770977439951,-250.0,9.112e-05,2]
[405312447,1770977439961,-420.0,9.186e-05,2]
[405312448,1770977439972,-150.99,9.296e-05,2]
[405312449,1770977439982,-9999.99,9.296e-05,2]
[405312450,1770977439994,-9999.99,9.296e-05,2]
[405312451,1770977440005,-999.99,9.296e-05,2]
[405312452,1770977440016,-1347.69233459,9.875e-05,2]
[405312453,1770977440027,-198.07726629,0.0001,2]
[405312454,1770977440037,-587.0,0.00010105,2]
[405312455,1770977440048,-250.0,0.00010946,2]
[405312456,1770977440058,-300.0,0.00011051,7]
[405312457,1770977440069,-496.88668475,0.00011099,2]
[405312458,1770977440079,-496.88668475,0.00011099,2]
[405312459,1770977440088,-496.88668475,0.00011099,2]
[405312460,1770977440098,-496.88668475,0.00011099,2]
[405312461,1770977440109,-496.88668475,0.00011099,2]
[405312462,1770977440122,-496.88668475,0.00011099,2]
[405312463,1770977440132,-823.0,0.00011115,2]
[405312464,1770977440142,-496.88668475,0.00011422,2]
[405312465,1770977440152,-496.88668475,0.00011933,2]
[405312466,1770977440162,-246.66,0.000121,2]
[405312467,1770977440171,-1152.0,0.00012227,2]
[405312468,1770977440181,-496.88668475,0.00012445,2]
[405312469,1770977440190,-6320.88,0.00012618,2]
[405312470,1770977440199,-172409.97,0.00012756,2]
[405312471,1770977440209,-496.88668475,0.00012957,2]
[405312472,1770977440219,-3613.99,0.00013057,2]
[405312473,1770977440233,-500.0,0.00013128,2]
[405312474,1770977440242,-2184.19,0.00013156,2]
[405312475,1770977440252,-500.0,0.00013233,2]
[405312476,1770977440261,-3240.0,0.00013425,2]
[405312477,1770977440272,-1613.0,0.0001345,2]
[405312478,1770977440282,-198.07726627,0.00013492,2]
[405312479,1770977440291,-500.0,0.00013698,2]
[405312480,1770977440303,-500.0,0.00013698,2]
[405312481,1770977440313,-500.0,0.00013698,2]
[405312482,1770977440322,-500.0,0.00013698,2]
[405312483,1770977440335,-500.0,0.00013698,2]
[405312484,1770977440345,-500.0,0.00013698,2]
[405312485,1770977440354,-500.0,0.00013698,2]
[405312486,1770977440363,-500.0,0.00013698,2]
[405312487,1770977440373,-500.0,0.00013698,2]
[405312488,1770977440382,-500.0,0.00013698,2]
[405312489,1770977440391,-500.0,0.00013698,2]
[405312490,1770977440401,-500.0,0.00013698,2]
[405312491,1770977440411,-500.0,0.00013698,2]
[405312492,1770977440420,-500.0,0.00013698,2]
[405312493,1770977440430,-500.0,0.00013698,2]
[405312494,1770977440439,-500.0,0.00013698,2]
[405312495,1770977440449,-500.0,0.00013698,2]
[405312496,1770977440458,-500.0,0.00013698,2]
[405312497,1770977440468,-500.0,0.00013698,2]
[405312498,1770977440478,-500.0,0.00013698,2]
[405312499,1770977440487,-500.0,0.00013698,2]
[405312500,1770977440497,-500.0,0.00013698,2]
[405312501,1770977440507,-559.38615752,0.00013698,2]
[405312502,1770977440516,-500.0,0.00013698,2]
[405312503,1770977440529,-505.53791634,0.00013698,2]
[405312504,1770977440539,-500.0,0.00013698,2]
[405312505,1770977440549,-500.0,0.00013698,2]
[405312506,1770977440559,-500.0,0.00013698,2]
[405312507,1770977440569,-500.0,0.00013698,2]
[405312508,1770977440579,-500.0,0.00013698,2]
[405312509,1770977440589,-500.0,0.00013698,2]
[405312510,1770977440599,-500.0,0.00013698,2]
[405312511,1770977440608,-430.95470034,0.00013698,2]
[405312512,1770977440617,-526.46476323,0.00013698,2]
[405312513,1770977440627,-4646.45,0.0001374,2]
[405312514,1770977440636,-160.0,0.00013762,2]
[405312515,1770977440645,-177.161267,0.00014072,7]
[405312516,1770977440654,-4646.45,0.00014427,2]
[405312517,1770977440663,-500.0,0.0001463,2]
[405312518,1770977440673,-2258.0,0.00014795,2]
[405312519,1770977440683,-250.0,0.00015,2]
[405312520,1770977440693,-4646.45,0.00015114,2]
[405312521,1770977440702,-500.0,0.00015479,2]
[405312522,1770977440711,-500.0,0.00015534,2]
[405312523,1770977440725,-4668.71,0.00015563,2]
[405312524,1770977440734,-4646.45,0.00015801,2]
[405312525,1770977440746,-14418.6243628,0.00016013,2]
[405312526,1770977440756,-453.94,0.00016116,2]
[405312527,1770977440766,-282.63121113,0.00016173,2]
[405312528,1770977440775,-160.37994263,0.00016173,2]
[405312529,1770977441029,-500.0,0.00016173,2]
[405312530,1770977441046,-500.2976467,0.00016173,2]
[405312531,1770977441055,-596.02960806,0.00016173,2]
[405312532,1770977441065,-155.53073825,0.00016231,2]